fUSD/lending_fUSD_20240420
["ID","MTS","AMOUNT","RATE_DAILY","PERIOD"]
[323016919,1713591038866,-500.0,0.00015068,2]
[323016920,1713591038877,-500.0,0.00015068,2]
[323016921,1713591038887,-500.0,0.00015068,2]
[323016922,1713591038896,-500.0,0.00015068,2]
[323016923,1713591038906,-500.0,0.00015068,2]
[323016924,1713591038916,-500.0,0.00015068,2]
[323016925,1713591038926,-500.0,0.00015068,2]
[323016926,1713591038936,-192.72779064,0.00015068,2]
[323016927,1713591038945,-500.0,0.00015068,2]
[323016928,1713591038954,-500.0,0.00015068,2]
[323016929,1713591038963,-514.2,0.00015068,2]
[323016930,1713591038972,-500.0,0.00015068,2]
[323016931,1713591038981,-500.0,0.00015068,2]
[323016932,1713591038990,-377.64919086,0.00015068,2]
[323016933,1713591038999,-157.15129178,0.00015068,2]
[323016934,1713591039008,-500.0,0.00015068,2]
[323016935,1713591039017,-500.0,0.00015068,2]
[323016936,1713591039027,-500.0,0.00015068,2]
[323016937,1713591039036,-500.0,0.00015068,2]
[323016938,1713591039045,-500.0,0.00015068,2]
[323016939,1713591039054,-521.77,0.00015068,2]
[323016940,1713591039063,-500.0,0.00015068,2]
[323016941,1713591039072,-500.0,0.00015068,2]
[323016942,1713591039081,-500.0,0.00015068,2]
[323016943,1713591039090,-500.0,0.00015068,2]
[323016944,1713591039099,-500.0,0.00015068,2]
[323016945,1713591039108,-500.0,0.00015068,2]
[323016946,1713591039117,-500.0,0.00015068,2]
[323016947,1713591039126,-500.0,0.00015068,2]
[323016948,1713591039136,-500.0,0.00015068,2]
[323016949,1713591039147,-500.0,0.00015068,2]
[323016950,1713591039157,-500.0,0.00015068,2]
[323016951,1713591039167,-577.57,0.00015068,2]
[323016952,1713591039178,-500.0,0.00015068,2]
[323016953,1713591039189,-500.0,0.00015068,2]
[323016954,1713591039200,-500.0,0.00015068,2]
[323016955,1713591039210,-251.20289421,0.00015068,2]
[323016956,1713591039220,-500.0,0.00015068,2]
[323016957,1713591039230,-505.47376577,0.00015068,2]
[323016958,1713591039241,-500.0,0.00015068,2]
[323016959,1713591039251,-531.97,0.00015068,2]
[323016960,1713591039261,-500.0,0.00015068,2]
[323016961,1713591039272,-500.0,0.00015068,2]
[323016962,1713591039281,-500.0,0.00015068,2]
[323016963,1713591039290,-591.29,0.00015068,2]
[323016964,1713591039299,-500.0,0.00015068,2]
[323016965,1713591039308,-500.0,0.00015068,2]
[323016966,1713591039317,-500.0,0.00015068,2]
[323016967,1713591039574,-500.0,0.00015068,2]
[323016968,1713591039642,-500.0,0.00015068,2]
[323016969,1713591039652,-500.0,0.00015068,2]
[323016970,1713591039662,-500.0,0.00015068,2]
[323016971,1713591039672,-500.0,0.00015068,2]
[323016972,1713591039682,-500.0,0.00015068,2]
[323016973,1713591039691,-500.0,0.00015068,2]
[323016974,1713591039701,-500.0,0.00015068,2]
[323016975,1713591039711,-500.0,0.00015068,2]
[323016976,1713591039722,-500.0,0.00015068,2]
[323016977,1713591039732,-500.0,0.00015068,2]
[323016978,1713591039742,-872.62,0.00015068,2]
[323016979,1713591039751,-500.0,0.00015068,2]
[323016980,1713591039762,-500.0,0.00015068,2]
[323016981,1713591039772,-500.0,0.00015068,2]
[323016982,1713591039782,-500.0,0.00015068,2]
[323016983,1713591039791,-500.0,0.00015068,2]
[323016984,1713591039801,-500.0,0.00015068,2]
[323016985,1713591039811,-500.0,0.00015068,2]
[323016986,1713591039820,-500.0,0.00015068,2]
[323016987,1713591039830,-500.0,0.00015068,2]
[323016988,1713591039844,-500.0,0.00015068,2]
[323016989,1713591039853,-500.0,0.00015068,2]
[323016990,1713591039862,-500.0,0.00015068,2]
[323016991,1713591039872,-500.0,0.00015068,2]
[323016992,1713591039883,-500.0,0.00015068,2]
[323016993,1713591039892,-500.0,0.00015068,2]
[323016994,1713591039901,-633.59,0.00015068,2]
[323016995,1713591039912,-611.59,0.00015068,2]
[323016996,1713591039921,-500.0,0.00015068,2]
[323016997,1713591039931,-500.0,0.00015068,2]
[323016998,1713591039941,-500.0,0.00015068,2]
[323016999,1713591039950,-500.0,0.00015068,2]
[323017000,1713591039960,-500.0,0.00015068,2]
[323017001,1713591039970,-545.97,0.00015068,2]
[323017002,1713591039982,-500.0,0.00015068,2]
[323017003,1713591039992,-500.0,0.00015068,2]
[323017004,1713591040004,-170.66036078,0.00015068,2]
[323017005,1713591040025,-329.33963922,0.00015068,2]
[323017006,1713591040036,-500.0,0.00015068,2]
[323017007,1713591040046,-500.0,0.00015068,2]
[323017008,1713591040056,-500.0,0.00015068,2]
[323017009,1713591040068,-890.38,0.00015068,2]
[323017010,1713591040077,-673.99,0.00015068,2]
[323017011,1713591040087,-500.0,0.00015068,2]
[323017012,1713591040098,-603.05,0.00015068,2]
[323017013,1713591040108,-500.0,0.00015068,2]
[323017014,1713591040118,-500.0,0.00015068,2]
[323017015,1713591040129,-500.0,0.00015068,2]
[323017016,1713591040138,-500.0,0.00015068,2]
[323017017,1713591040148,-551.87,0.00015068,2]
[323017018,1713591040158,-54.90113279,0.00015068,2]
[323017019,1713591040253,-445.09886721,0.00015068,2]
[323017020,1713591040262,-500.0,0.00015068,2]
[323017021,1713591040273,-648.82,0.00015068,2]
[323017022,1713591040282,-500.0,0.00015068,2]
[323017023,1713591040293,-503.25,0.00015068,2]
[323017024,1713591040302,-500.0,0.00015068,2]
[323017025,1713591040313,-500.0,0.00015068,2]
[323017026,1713591040323,-614.04,0.00015068,2]
[323017027,1713591040333,-500.0,0.00015068,2]
[323017028,1713591040344,-500.0,0.00015068,2]
[323017029,1713591040353,-500.0,0.00015068,2]
[323017030,1713591040362,-500.0,0.00015068,2]
[323017031,1713591040372,-500.0,0.00015068,2]
[323017032,1713591040382,-64.75969572,0.00015068,2]
[323017033,1713591040474,-435.24030428,0.00015068,2]
[323017034,1713591040485,-690.65,0.00015068,2]
[323017035,1713591040495,-500.0,0.00015068,2]
[323017036,1713591040505,-500.0,0.00015068,2]
[323017037,1713591040514,-500.0,0.00015068,2]
[323017038,1713591040525,-500.0,0.00015068,2]
[323017039,1713591040534,-500.0,0.00015068,2]
[323017040,1713591040543,-500.0,0.00015068,2]
[323017041,1713591040553,-500.0,0.00015068,2]
[323017042,1713591040562,-639.09,0.00015068,2]
[323017043,1713591040572,-1427.61,0.00015068,2]
[323017044,1713591040582,-500.0,0.00015068,2]
[323017045,1713591040591,-500.0,0.00015068,2]
[323017046,1713591040601,-500.0,0.00015068,2]
[323017047,1713591040610,-778.93,0.00015068,2]
[323017048,1713591040620,-500.0,0.00015068,2]
[323017049,1713591040629,-510.58,0.00015068,2]
[323017050,1713591040638,-582.45,0.00015068,2]
[323017051,1713591040647,-500.0,0.00015068,2]
[323017052,1713591040657,-504.28,0.00015068,2]
[323017053,1713591040667,-550.54,0.00015068,2]
[323017054,1713591040676,-280.62969572,0.00015068,2]
[323017055,1713591041403,150.06811387,0.00011136,2]
[323017056,1713591041903,-219.37030428,0.00015068,2]
[323017057,1713591041913,-207.81846583,0.00015068,2]
[323017058,1713591041954,-292.18153417,0.00015068,2]
[323017059,1713591041963,-500.0,0.00015068,2]
[323017060,1713591041973,-660.22,0.00015068,2]
[323017061,1713591041983,-500.0,0.00015068,2]
[323017062,1713591041992,-500.0,0.00015068,2]
[323017063,1713591042002,-500.0,0.00015068,2]
[323017064,1713591042012,-500.0,0.00015068,2]
[323017065,1713591042021,-685.07,0.00015068,2]
[323017066,1713591042031,-500.0,0.00015068,2]
[323017067,1713591042041,-500.0,0.00015068,2]
[323017068,1713591042050,-750.29,0.00015068,2]
[323017069,1713591042060,-1071.57,0.00015068,2]
[323017070,1713591042069,-523.4,0.00015068,2]
[323017071,1713591042078,-500.0,0.00015068,2]
[323017072,1713591042087,-500.0,0.00015068,2]
[323017073,1713591042095,-500.0,0.00015068,2]
[323017074,1713591042104,-159.6518795,0.00015068,2]
[323017075,1713591042168,-340.3481205,0.00015068,2]
[323017076,1713591042178,-282.1518795,0.00015068,2]
[323017077,1713591042225,-217.8481205,0.00015068,2]
[323017078,1713591042235,-500.0,0.00015068,2]
[323017079,1713591042244,-808.71,0.00015068,2]
[323017080,1713591042253,-182.7518795,0.00015068,2]
[323017081,1713591042267,-492.9081205,0.00015068,2]
[323017082,1713591042276,-500.0,0.00015068,2]
[323017083,1713591042285,-500.0,0.00015068,2]
[323017084,1713591042294,-500.0,0.00015068,2]
[323017085,1713591042303,-500.0,0.00015068,2]
[323017086,1713591042312,-500.0,0.00015068,2]
[323017087,1713591042321,-500.0,0.00015068,2]
[323017088,1713591042330,-500.0,0.00015068,2]
[323017089,1713591042339,-500.0,0.00015068,2]
[323017090,1713591042349,-500.0,0.00015068,2]
[323017091,1713591042358,-500.0,0.00015068,2]
[323017092,1713591042368,-500.0,0.00015068,2]
[323017093,1713591042377,-500.0,0.00015068,2]
[323017094,1713591042386,-500.0,0.00015068,2]
[323017095,1713591042395,-758.11,0.00015068,2]
[323017096,1713591042404,-500.0,0.00015068,2]
[323017097,1713591042413,-500.0,0.00015068,2]
[323017098,1713591042422,-500.0,0.00015068,2]
[323017099,1713591042431,-500.0,0.00015068,2]
[323017100,1713591042440,-500.0,0.00015068,2]
[323017101,1713591042449,-500.0,0.00015068,2]
[323017102,1713591042458,-500.0,0.00015068,2]
[323017103,1713591042467,-500.0,0.00015068,2]
[323017104,1713591042476,-500.0,0.00015068,2]
[323017105,1713591042485,-291.12570216,0.00015068,2]
[323017106,1713591042543,-208.87429784,0.00015068,2]
[323017107,1713591042555,-246.46570216,0.00015068,2]
[323017108,1713591042596,-665.36429784,0.00015068,2]
[323017109,1713591042608,-800.78,0.00015068,2]
[323017110,1713591042619,-500.0,0.00015068,2]
[323017111,1713591042631,-500.0,0.00015068,2]
[323017112,1713591042644,-500.0,0.00015068,2]
[323017113,1713591042656,-67.0567338,0.00015068,2]
[323017114,1713591042672,-493.3432662,0.00015068,2]
[323017115,1713591042684,-500.0,0.00015068,2]
[323017116,1713591042695,-500.0,0.00015068,2]
[323017117,1713591042706,-749.08,0.00015068,2]
[323017118,1713591042718,-606.08,0.00015068,2]
[323017119,1713591042730,-500.0,0.00015068,2]
[323017120,1713591042741,-500.0,0.00015068,2]
[323017121,1713591042753,-634.80714483,0.00015068,2]
[323017122,1713591042764,-500.0,0.00015068,2]
[323017123,1713591042776,-500.0,0.00015068,2]
[323017124,1713591042788,-500.0,0.00015068,2]
[323017125,1713591042800,-235.21444621,0.00015068,2]
[323017152,1713591044030,-389.09555379,0.00015068,2]
[323017153,1713591044043,-63.90444621,0.00015068,2]
[323017154,1713591044220,-436.09555379,0.00015068,2]
[323017155,1713591044232,-650.25,0.00015068,2]
[323017156,1713591044243,-500.0,0.00015068,2]
[323017157,1713591044255,-636.27,0.00015068,2]
[323017158,1713591044266,-500.0,0.00015068,2]
[323017159,1713591044276,-96.81704823,0.00015068,2]
[323017164,1713591046439,-521.81,0.00015,2]
[323017165,1713591046450,-418.94,0.00015,2]
[323017166,1713591046461,-313.67030526,0.00015067,2]
[323017167,1713591046471,-161.45924312,0.00015067,2]
[323017168,1713591046481,-606.84295177,0.00015068,2]
[323017169,1713591046491,-500.0,0.00015068,2]
[323017170,1713591046501,-500.0,0.00015068,2]
[323017171,1713591046511,-1017.23,0.00015068,2]
[323017172,1713591046521,-564.5,0.00015068,2]
[323017173,1713591046531,-500.0,0.00015068,2]
[323017174,1713591046542,-732.59,0.00015068,2]
[323017175,1713591046552,-500.0,0.00015068,2]
[323017176,1713591046562,-508.45,0.00015068,2]
[323017177,1713591046572,-964.13,0.00015068,2]
[323017178,1713591046583,-500.0,0.00015068,2]
[323017179,1713591046593,-500.0,0.00015068,2]
[323017180,1713591046604,-570.46,0.00015068,2]
[323017181,1713591046614,-500.0,0.00015068,2]
[323017182,1713591046623,-1030.3,0.00015068,2]
[323017183,1713591046634,-500.0,0.00015068,2]
[323017184,1713591046644,-500.0,0.00015068,2]
[323017185,1713591046654,-504.54444067,0.00015068,2]
[323017186,1713591046664,-500.0,0.00015068,2]
[323017187,1713591046674,-500.0,0.00015068,2]
[323017188,1713591046685,-958.89,0.00015068,2]
[323017189,1713591046696,-500.0,0.00015068,2]
[323017190,1713591046706,-500.0,0.00015068,2]
[323017191,1713591046716,-500.0,0.00015068,2]
[323017192,1713591046726,-500.0,0.00015068,2]
[323017193,1713591046737,-500.0,0.00015068,2]
[323017194,1713591046747,-500.0,0.00015068,2]
[323017195,1713591046758,-500.0,0.00015068,2]
[323017196,1713591046769,-226.18306018,0.00015068,2]
[323017197,1713591046784,-273.81693982,0.00015068,2]
[323017198,1713591046795,-63.27275535,0.00015068,2]
[323017199,1713591046809,-436.72724465,0.00015068,2]
[323017200,1713591046819,-794.68,0.00015068,2]
[323017201,1713591046830,-1091.24,0.00015068,2]
[323017202,1713591046843,-500.0,0.00015068,2]
[323017203,1713591046854,-500.0,0.00015068,2]
[323017204,1713591046865,-657.04,0.00015068,2]
[323017205,1713591046876,-1135.03,0.00015068,2]
[323017206,1713591046887,-500.0,0.00015068,2]
[323017207,1713591046898,-500.0,0.00015068,2]
[323017208,1713591046909,-156.17846442,0.00015068,2]
[323017209,1713591046921,-199.9656597,0.00015068,2]
[323017210,1713591046932,-500.0,0.00015068,2]
[323017211,1713591046942,-676.64,0.00015068,2]
[323017212,1713591047655,-500.0,0.00015068,2]
[323017213,1713591047682,-500.0,0.00015068,2]
[323017214,1713591047698,-500.0,0.00015068,2]
[323017215,1713591047720,-500.0,0.00015068,2]
[323017216,1713591047740,-500.0,0.00015068,2]
[323017217,1713591047750,-500.0,0.00015068,2]
[323017218,1713591047759,-1598.26,0.00015068,2]
[323017219,1713591047768,-185.77591123,0.00015068,2]
[323017220,1713591047795,-314.22408877,0.00015068,2]
[323017221,1713591047804,-883.42,0.00015068,2]
[323017222,1713591047814,-334.75591126,0.00015068,2]
[323017223,1713591100071,154.67,0.0001611,15]
[323017224,1713591164636,-200.23233855,0.00012082,2]
[323017225,1713591164657,-2540.35536187,0.00012083,2]
[323017226,1713591164677,-155.0,0.000143,2]
[323017227,1713591164699,-150.0,0.00014301,2]
[323017228,1713591164722,-150.0,0.00014403,2]
[323017229,1713591164742,-1128.24549352,0.00014439,2]
[323017230,1713591164762,-207.70305494,0.0001444,2]
[323017231,1713591164784,-1652.57,0.00014441,2]
[323017232,1713591164804,-150.0,0.00014904,2]
[323017233,1713591164825,-150.0,0.00014929,2]
[323017234,1713591164847,-740.34371375,0.00014968,2]
[323017235,1713591164869,-150.0,0.00015038,2]
[323017236,1713591164892,-800.0,0.00015041,2]
[323017237,1713591164919,-800.0,0.00015041,2]
[323017238,1713591164942,-2093.55003737,0.00015056,2]
[323017239,1713591336673,55831.93016486,0.00028001,120]
[323017242,1713591649746,154.67,0.0001611,15]
[323017244,1713591818656,-558.54195923,0.000285,120]
[323017245,1713591818719,-323.00475153,0.00029,120]
[323017246,1713591818747,-1300.66,0.0003,120]
[323017247,1713591818769,-299.0,0.0003,120]
[323017248,1713591891170,-10000.0,0.00030001,120]
[323017255,1713591980673,-20000.0,0.00030001,120]
[323017256,1713592019317,-25831.93016486,0.00030001,120]
[323017257,1713592019343,-725.6388623,0.00031,120]
[323017261,1713592040240,483.75924153,0.00031,120]
[323017264,1713592062160,403.13270128,0.00031,120]
[323017265,1713592084174,403.13270128,0.00031,120]
[323017266,1713592104170,282.1928909,0.00031,120]
[323017268,1713592122169,282.1928909,0.00031,120]
[323017269,1713592140332,282.1928909,0.00031,120]
[323017271,1713592162193,282.1928909,0.00031,120]
[323017283,1713592182238,282.1928909,0.00031,120]
[323017284,1713592208179,282.1928909,0.00031,120]
[323017285,1713592226193,322.506161,0.00031,120]
[323017292,1713592232551,-404.63791958,0.00011466,2]
[323017293,1713592232564,-52.17164384,0.00011467,2]
[323017294,1713592232613,-310.94498011,0.00011467,2]
[323017295,1713592232625,-155.0,0.00011468,2]
[323017296,1713592232638,-207.70305494,0.00011469,2]
[323017297,1713592232649,-467.85,0.00011476,2]
[323017298,1713592232661,-156.67498359,0.00011636,2]
[323017299,1713592232673,-1101.37,0.00013381,2]
[323017300,1713592232684,-240.0,0.00013504,2]
[323017301,1713592232695,-150.0,0.0001359,2]
[323017302,1713592232706,-150.0,0.00013616,2]
[323017304,1713592232717,-154.24,0.00013675,2]
[323017306,1713592232727,-150.0,0.00013698,2]
[323017309,1713592232739,-184.05,0.00013699,2]
[323017311,1713592232749,-1500.0,0.00013699,2]
[323017313,1713592232761,-150.99,0.00013711,2]
[323017315,1713592232772,-154.24,0.0001373,2]
[323017318,1713592232783,-467.85,0.0001374,2]
[323017320,1713592232793,-760.0,0.00013752,2]
[323017322,1713592232804,-154.24,0.00013785,2]
[323017324,1713592232815,-150.0,0.00013807,2]
[323017326,1713592232825,-521.35,0.00013807,2]
[323017328,1713592232836,-154.24,0.0001384,2]
[323017331,1713592232848,-234.68,0.00013848,2]
[323017333,1713592232859,-9999.99,0.00013848,2]
[323017335,1713592232870,-150.0,0.00013878,2]
[323017337,1713592232881,-154.24,0.00013895,2]
[323017340,1713592232892,-154.24,0.00013949,2]
[323017342,1713592232903,-499.99,0.00014,2]
[323017344,1713592232913,-154.24,0.00014004,2]
[323017346,1713592232924,-154.24,0.00014059,2]
[323017348,1713592232936,-909.65,0.0001411,2]
[323017351,1713592232946,-154.24,0.00014114,2]
[323017353,1713592232957,-154.24,0.00014169,2]
[323017355,1713592232967,-150.99,0.00014203,2]
[323017357,1713592232978,-170.52,0.00014217,2]
[323017359,1713592232988,-150.99,0.00014217,2]
[323017361,1713592232999,-154.24,0.00014224,2]
[323017364,1713592233010,-825.93,0.00014265,2]
[323017366,1713592233020,-150.0,0.00014277,2]
[323017368,1713592233031,-154.24,0.00014278,2]
[323017370,1713592233041,-154.24,0.00014333,2]
[323017372,1713592233051,-154.73,0.00014334,2]
[323017374,1713592233061,-413.16,0.00014341,2]
[323017375,1713592233072,-1155.95,0.00014341,2]
[323017376,1713592233082,-154.73,0.00014346,2]
[323017377,1713592233092,-150.0,0.00014356,2]
[323017378,1713592233105,-154.73,0.00014358,2]
[323017379,1713592233116,-154.73,0.0001437,2]
[323017380,1713592233126,-154.73,0.00014382,2]
[323017381,1713592233136,-907.73,0.00014384,2]
[323017382,1713592233147,-154.24,0.00014388,2]
[323017383,1713592233157,-154.73,0.00014394,2]
[323017384,1713592233167,-150.0,0.000144,2]
[323017385,1713592233178,-150.0,0.000144,2]
[323017386,1713592233188,-154.73,0.00014406,2]
[323017387,1713592233198,-521.81,0.00014478,2]
[323017388,1713592233209,-300.0,0.00014478,2]
[323017389,1713592233219,-150.0,0.00014478,2]
[323017390,1713592233230,-519.94,0.00014478,2]
[323017391,1713592233241,-150.0,0.00014478,2]
[323017392,1713592233253,-150.0,0.000145,2]
[323017393,1713592233263,-150.0,0.000145,2]
[323017394,1713592233273,-150.0,0.000145,2]
[323017395,1713592233284,-150.0,0.000145,2]
[323017396,1713592233294,-521.81,0.00014521,2]
[323017397,1713592233305,-150.0,0.00014541,2]
[323017398,1713592233315,-150.0,0.000146,2]
[323017399,1713592233325,-521.81,0.00014603,2]
[323017400,1713592233338,-150.0,0.00014629,2]
[323017401,1713592233348,-300.0,0.00014629,2]
[323017402,1713592233359,-160.22,0.00014629,2]
[323017403,1713592233370,-151.99,0.00014629,2]
[323017404,1713592233380,-521.81,0.00014678,2]
[323017405,1713592233390,-350.29,0.00014678,2]
[323017406,1713592233401,-325.4,0.00014678,2]
[323017407,1713592233412,-150.0,0.00014678,2]
[323017408,1713592233422,-150.0,0.000147,2]
[323017409,1713592233433,-159.96,0.00014795,2]
[323017410,1713592233443,-306.11,0.00014795,2]
[323017411,1713592233453,-695.47,0.00014795,2]
[323017412,1713592233464,-150.0,0.00014805,2]
[323017413,1713592233475,-3000.0,0.0001492,2]
[323017414,1713592233484,-156.67498359,0.00014966,2]
[323017415,1713592233494,-1599.8601,0.00014968,2]
[323017416,1713592233505,-9509.49287831,0.00014968,2]
[323017417,1713592233515,-150.0,0.00015,2]
[323017418,1713592233526,-1000.0,0.00015,2]
[323017419,1713592233536,-1250.0,0.00015,2]
[323017420,1713592233546,-155.87,0.00015052,2]
[323017421,1713592233556,-271.30286894,0.00015054,2]
[323017422,1713592233566,-1129.44792873,0.00015055,2]
[323017423,1713592233576,-155.34541804,0.00015055,2]
[323017424,1713592233587,-37844.8834012,0.00015056,2]
[323017425,1713592233600,-56278.1064301,0.00015056,2]
[323017426,1713592233611,-12876.7374499,0.00015056,2]
[323017427,1713592233621,-155.87,0.00015058,2]
[323017428,1713592233634,-345838.7634472,0.00015062,2]
[323017429,1713592233644,-210.53465711,0.00015066,2]
[323017430,1713592233654,-202.26348816,0.00015066,2]
[323017431,1713592233665,-5000.0,0.00015066,2]
[323017432,1713592233676,-270.60271796,0.00015066,2]
[323017433,1713592233687,-271.63410405,0.00015066,2]
[323017434,1713592233697,-608.19025211,0.00015066,2]
[323017435,1713592233708,-710.63433797,0.00015066,2]
[323017436,1713592233718,-156.07285516,0.00015066,2]
[323017437,1713592233730,-4331.85616407,0.00015066,2]
[323017438,1713592233740,-155.62730282,0.00015066,2]
[323017439,1713592233751,-262.19707218,0.00015067,2]
[323017440,1713592233763,-323.74212298,0.00015067,2]
[323017441,1713592233774,-500.0,0.00015068,2]
[323017442,1713592233785,-500.0,0.00015068,2]
[323017443,1713592233795,-537.83996841,0.00015068,2]
[323017444,1713592233805,-500.0,0.00015068,2]
[323017445,1713592233816,-500.0,0.00015068,2]
[323017446,1713592233826,-500.0,0.00015068,2]
[323017447,1713592233837,-500.0,0.00015068,2]
[323017448,1713592233847,-500.0,0.00015068,2]
[323017449,1713592233858,-500.0,0.00015068,2]
[323017450,1713592233869,-500.0,0.00015068,2]
[323017451,1713592233879,-530.97,0.00015068,2]
[323017452,1713592233890,-500.0,0.00015068,2]
[323017453,1713592233901,-500.0,0.00015068,2]
[323017454,1713592233911,-500.0,0.00015068,2]
[323017455,1713592233922,-500.0,0.00015068,2]
[323017456,1713592233932,-500.0,0.00015068,2]
[323017457,1713592233943,-500.0,0.00015068,2]
[323017458,1713592233954,-500.0,0.00015068,2]
[323017459,1713592233965,-507.24,0.00015068,2]
[323017460,1713592233976,-500.0,0.00015068,2]
[323017461,1713592233987,-677.3,0.00015068,2]
[323017462,1713592233999,-500.0,0.00015068,2]
[323017463,1713592234009,-500.0,0.00015068,2]
[323017464,1713592234020,-500.0,0.00015068,2]
[323017465,1713592234031,-500.0,0.00015068,2]
[323017466,1713592234041,-727.12,0.00015068,2]
[323017467,1713592234052,-500.0,0.00015068,2]
[323017468,1713592234063,-500.0,0.00015068,2]
[323017469,1713592234074,-500.0,0.00015068,2]
[323017470,1713592234084,-500.0,0.00015068,2]
[323017471,1713592234095,-500.0,0.00015068,2]
[323017472,1713592234108,-500.0,0.00015068,2]
[323017473,1713592234119,-553.83,0.00015068,2]
[323017474,1713592234130,-500.0,0.00015068,2]
[323017475,1713592234140,-608.21,0.00015068,2]
[323017476,1713592234151,-500.0,0.00015068,2]
[323017477,1713592234161,-548.79,0.00015068,2]
[323017478,1713592234171,-500.0,0.00015068,2]
[323017479,1713592234182,-500.0,0.00015068,2]
[323017480,1713592234192,-500.0,0.00015068,2]
[323017481,1713592234202,-592.74,0.00015068,2]
[323017482,1713592234212,-500.0,0.00015068,2]
[323017483,1713592234222,-500.0,0.00015068,2]
[323017484,1713592234233,-500.0,0.00015068,2]
[323017485,1713592234243,-500.0,0.00015068,2]
[323017486,1713592234260,-500.0,0.00015068,2]
[323017487,1713592234271,-687.78,0.00015068,2]
[323017488,1713592234282,-500.0,0.00015068,2]
[323017489,1713592234292,-500.0,0.00015068,2]
[323017490,1713592234303,-500.0,0.00015068,2]
[323017491,1713592234314,-500.0,0.00015068,2]
[323017492,1713592234324,-500.0,0.00015068,2]
[323017493,1713592234334,-366.31109413,0.00015068,2]
[323017494,1713592234345,-500.0,0.00015068,2]
[323017495,1713592234358,-500.0,0.00015068,2]
[323017496,1713592234368,-500.0,0.00015068,2]
[323017497,1713592234379,-500.0,0.00015068,2]
[323017498,1713592234389,-550.99,0.00015068,2]
[323017499,1713592234399,-500.0,0.00015068,2]
[323017500,1713592234410,-500.0,0.00015068,2]
[323017501,1713592234421,-500.0,0.00015068,2]
[323017502,1713592234431,-500.0,0.00015068,2]
[323017503,1713592234441,-500.0,0.00015068,2]
[323017504,1713592234451,-791.1,0.00015068,2]
[323017505,1713592234461,-500.0,0.00015068,2]
[323017506,1713592234471,-500.0,0.00015068,2]
[323017507,1713592234481,-500.0,0.00015068,2]
[323017508,1713592234493,-720.18,0.00015068,2]
[323017509,1713592234505,-500.0,0.00015068,2]
[323017510,1713592234516,-500.0,0.00015068,2]
[323017511,1713592234526,-500.0,0.00015068,2]
[323017512,1713592234537,-500.0,0.00015068,2]
[323017513,1713592234548,-500.0,0.00015068,2]
[323017514,1713592234558,-500.0,0.00015068,2]
[323017515,1713592234568,-500.0,0.00015068,2]
[323017516,1713592234579,-500.0,0.00015068,2]
[323017517,1713592234589,-500.0,0.00015068,2]
[323017518,1713592234600,-500.0,0.00015068,2]
[323017519,1713592234611,-1117.37,0.00015068,2]
[323017520,1713592234621,-500.0,0.00015068,2]